Workbook

Sheet Example
A1: ITEM DESC: | E1: PROJECT I.D.
A2: ITEM #: | E2: ROADWAY
A3: CATEGORY: | E3: DESCRIPTION
A4: ENTERED: | E4: COUNTY
A5: CHECKED:
B7: =D8 -> 12 | C7: Inch Pipe @ | E7: STA | F7: =D11 -> 152+30
A8: Pipe Diameter (If Eliptical, enter Height) | D8: 12 | E8: IN
A9: Pipe Wall Thickness | D9: 4 | E9: IN
A10: Skew | D10: 14 | E10: DEG
A11: Pipe STA | D11: 152+30 | E11: STA
A12: Pipe Length (Plan) | D12: 50 | E12: FT
A13: Inlet Elevation (Plan) | D13: 742.5 | E13: FT
A14: Discharge Elevation (Plan) | D14: 742.1 | E14: FT
A17: Finish Roadway Elevation (Plan) | D17: 746.29 | E17: FT
A18: Finish Roadway Elevation (Calculated) | D18: =D20+D19 -> 746.3 | E18: FT | F18: Note: For Checking
A19: Height of CABC and Pavement | D19: 1.5 | E19: FT
A20: Top of Subgrade | D20: 744.8 | E20: FT
C23: Left | E23: Right
A24: Roadway Width | C24: 20 | E24: 20
A25: Slope, % | C25: -0.02 | E25: -0.02
A26: Top of Subgrade | C26: =D20+C24*C25 -> 744.4 | E26: =D20+E24*E25 -> 744.4
A27: Flow Line | C27: 742.5 | E27: 742.1 | F27: Note: Input Field Survey If Possible
A28: Top of Pipe | C28: =C27+D8/12+D9/12 -> 743.8333333 | E28: =E27+D8/12+D9/12 -> 743.4333333
A29: Ditch Slope, ratio | C29: 4 | E29: 4
A30: Depth of Cover | C30: =C26-C28 -> 0.5666666667 | E30: =E26-E28 -> 0.9666666667
A31: Length (w/o offset) | C31: =(C24+C29*C30)/COS(RADIANS(D10)) -> 22.94833015 | E31: =(E24+E29*E30)/COS(RADIANS(D10)) -> 24.59731195
A32: Endwall Width | C32: 10 | E32: 10
A33: Endwall Offset | C33: =0.5*C32*SIN(RADIANS(D10)) -> 1.209609478 | E33: =0.5*E32*SIN(RADIANS(D10)) -> 1.209609478
A34: C' Section Length | C34: 0 | E34: 0 | F34: Note: For Concrete Only
A35: Eng. Judgement | C35: -0.5 | E35: -0.5
A36: Length (w/ offset) | C36: =C31+C33-C34+C35 -> 23.65793962 | E36: =E31+E33-E34+E35 -> 25.30692143
C39: Total Length = | D39: =C36+E36 -> 48.96486106 | E39: FT
C40: Number of AEW = | D40: 2
C41: Inlet Elevation = | D41: =C27 -> 742.5 | E41: FT
C42: Discharge Elevation = | D42: =E27 -> 742.1 | E42: FT

Sheet Sheet1
A1: ITEM DESC: | E1: PROJECT I.D:
A2: ITEM #: | E2: ROADWAY:
A3: CATEGORY: | E3: DESCRIPTION:
A4: ENTERED: | E4: COUNTY:
A5: CHECKED:
B7: =D8 -> 0 | C7: Inch Pipe @ | E7: STA | F7: =D11 -> 0
A8: Pipe Diameter (If Eliptical, enter Height) | E8: IN
A9: Pipe Wall Thickness | E9: IN
A10: Skew | E10: DEG
A11: Pipe STA | E11: STA
A12: Pipe Length (Plan) | E12: FT
A13: Inlet Elevation (Plan) | E13: FT
A14: Discharge Elevation (Plan) | E14: FT
A17: Finish Roadway Elevation (Plan) | E17: FT
A18: Finish Roadway Elevation (Calculated) | D18: =D20+D19 -> 0 | E18: FT | F18: Note: For Checking
A19: Height of CABC and Pavement | E19: FT
A20: Top of Subgrade | E20: FT
C23: Left | E23: Right
A24: Roadway Width
A25: Slope, %
A26: Top of Subgrade | C26: =D20+C24*C25 -> 0 | E26: =D20+E24*E25 -> 0
A27: Flow Line | F27: Note: Input Field Survey If Possible
A28: Top of Pipe | C28: =C27+D8/12+D9/12 -> 0 | E28: =E27+D8/12+D9/12 -> 0
A29: Ditch Slope, ratio
A30: Depth of Cover | C30: =C26-C28 -> 0 | E30: =E26-E28 -> 0
A31: Length (w/o offset) | C31: =(C24+C29*C30)/COS(RADIANS(D10)) -> 0 | E31: =(E24+E29*E30)/COS(RADIANS(D10)) -> 0
A32: Endwall Width
A33: Endwall Offset | C33: =0.5*C32*SIN(RADIANS(D10)) -> 0 | E33: =0.5*E32*SIN(RADIANS(D10)) -> 0
A34: C' Section Length | F34: Note: For Concrete Only
A35: Eng. Judgement
A36: Length (w/ offset) | C36: =C31+C33-C34+C35 -> 0 | E36: =E31+E33-E34+E35 -> 0
C39: Total Length = | D39: =C36+E36 -> 0 | E39: FT
C40: Number of AEW =
C41: Inlet Elevation = | D41: =C27 -> 0 | E41: FT
C42: Discharge Elevation = | D42: =E27 -> 0 | E42: FT
